Cogmind - Beta 13 @@@ ROGUE MODE // 2024.05.15 @ 16:58:43 Player: RD-BNK(r) Result: Destroyed by Y-45 Defender with Heavy Assault Rifle Performance ------------- Evolutions (0) 0 Regions Visited (3) 600 Robots Destroyed (33) 165 Value Destroyed (718) 718 Prototype IDs (11) 220 Alien Tech Used (0) 0 Bonus (0) 0 TOTAL SCORE: 1703 Bonus ------- None Cogmind --------- Core Integrity 0/250 Matter 294/300 Energy 63/100 System Corruption 0% Temperature Cool (39) Movement Walking (130) Location -9/Recycling Parts ------- > --- POWER (1) -------- (None) > --- PROPULSION (2) --- Cargo Legs > --- UTILITY (2+1) ---- Armored Scrap Engine Structural Scanner (+) > --- WEAPON (2) ------- Ballistic Autogun Construct/G > --- INVENTORY (5) ---- Subdweller Power Source Medium Storage Unit Machine Analyzer Subdweller Shrapnel Launcher Plasma Cutter Peak State ------------ > --- POWER ------------ Light Ion Engine > --- PROPULSION ------- Cargo Legs > --- UTILITY ---------- Scrap Engine Structural Scanner > --- WEAPON ----------- Slug Cannon Makeshift Sword > --- INVENTORY -------- Subdweller Power Source Armored Wheel Medium Storage Unit Machine Analyzer Subdweller Shrapnel Launcher [Rating: 43] Favorites ----------- Power Light Ion Engine Engine Light Ion Engine Propulsion Light Treads Treads Light Treads Leg Cargo Legs Wheel Armored Wheel Utility Large Storage Unit Device Seismic Detector Storage Large Storage Unit Protection Makeshift Kinetic Plating Weapon Autogun Energy Gun Constructs Ballistic Gun Autogun Ballistic Cannon Slug Cannon Launcher Grenade Launcher Slashing Weapon Makeshift Sword Build | -11 -10 -10 -9 ------- Run | Yrd Mat Sub Rec Slots Evolved . | . . . . Power . | . . . . Propulsion . | . . . . Utility . | . . . . Weapon . | . . . . Parts Attached 27 | 3 7 15 2 Power 3 | . 1 2 . Engine 3 | . 1 2 . Core . | . . . . Reactor . | . . . . Propulsion 5 | 2 2 1 . Treads 2 | 2 . . . Leg 1 | . . 1 . Wheel 2 | . 2 . . Hover . | . . . . Flight . | . . . . Utility 7 | 1 1 4 1 Device 5 | 1 . 3 1 Storage 1 | . 1 . . Processor . | . . . . Hackware . | . . . . Protection 1 | . . 1 . Artifact . | . . . . Weapon 12 | . 3 8 1 Energy Gun 2 | . . 2 . Energy Cannon . | . . . . Ballistic Gun 3 | . 2 . 1 Ballistic Cannon 3 | . . 3 . Launcher 3 | . 1 2 . Special Weapon . | . . . . Impact Weapon . | . . . . Slashing Weapon 1 | . . 1 . Piercing Weapon . | . . . . Special Melee Weapon . | . . . . Unidentified Prototypes . | . . . . Parts Lost 4 | . 1 2 1 Power 3 | . 1 1 1 Propulsion . | . . . . Utility 1 | . . 1 . Weapon . | . . . . Highest Loss Streak 1 | . 1 1 1 To Critical Strikes . | . . . . Average Slot Usage (%) 89 | . 99 88 59 Engine 12 | . 13 11 11 Treads 8 | . 21 . . Leg 6 | . . 9 12 Wheel 4 | . 6 4 . Device 17 | . 14 19 24 Storage 11 | . 14 12 . Protection 2 | . . 5 . Energy Gun 1 | . . 1 8 Ballistic Gun 12 | . 25 5 . Ballistic Cannon 3 | . . 6 . Launcher 2 | . 2 3 . Slashing Weapon 4 | . . 8 . Naked Turns . | . . . . Heaviest Build 41 | 11 32 41 12 Greatest Support 55 | 40 40 55 55 Greatest Overweight (x) 2 | . 2 1 . Average Overweight (x) . | . . . . Largest Inventory Capacity 15 | 8 15 15 5 Average Capacity 13 | 8 13 15 5 Most Carried 15 | 6 15 15 5 Average Carried 11 | 4 11 14 4 Final Capacity 15 | 8 15 15 5 Final Carried 15 | 5 15 14 5 Scrap Engine Consumption 11 | . . . 11 Constructs Created 1 | . . . 1 Class Distribution -------------------- 100% | Mutant Dominant Class ---------------- Mutant | -10/Materials Mutant | -10/Subcaves Mutant | -9/Recycling Resources | -11 -10 -10 -9 ----------- Run | Yrd Mat Sub Rec Matter Collected 1419 | 248 179 747 245 Remotely . | . . . . Salvage Created 778 | 78 238 462 . Parts 83 | 13 22 48 . Haulers Intercepted . | . . . . Recyclers Shooed . | . . . . Parts Field Recycled . | . . . . Retrieved Matter . | . . . . Parts Self-Destructed 13 | . . 13 . Prevented . | . . . . Kills | -11 -10 -10 -9 ------- Run | Yrd Mat Sub Rec Combat Hostiles Destroyed 22 | . 9 13 . Melee 2 | . . 2 . Guns 8 | . 5 3 . Cannons 1 | . . 1 . AOE 11 | . 4 7 . Classes Destroyed 9 | 1 5 3 . Builder 2 | . 2 . . Tunneler 4 | 4 . . . Mechanic 1 | . 1 . . Turret 2 | . . 2 . Watcher 2 | . 2 . . Swarmer 10 | . 6 4 . Grunt 3 | . 3 . . Artisan 1 | . . 1 . Subdweller 9 | . . 9 . Best Kill Streak 6 | 1 6 4 . Combat Bots Only 4 | . 4 4 . Max Kills in Single Turn 2 | 1 2 2 . Gunslinging . | . . . . Exploded 2 | . 2 2 . Melee 1 | . . 1 . Uniques/NPCs Destroyed . | . . . . Combat | -11 -10 -10 -9 -------- Run | Yrd Mat Sub Rec Hostile Shots Fired 166 | . 51 109 6 Missed 53 | . 14 39 . Damage Taken 1325 | . 344 894 87 Core 263 | . 86 133 44 Absorbed by Shields . | . . . . Ignored by Resistances 25 | . . 25 . Core Remaining (%) 100 | 100 . . . Volleys Fired 154 | 14 34 102 4 Largest 2 | 2 2 2 1 Hottest 71 | 40 46 71 41 Shots Fired 212 | 28 64 116 4 Gun 113 | 28 60 21 4 Cannon 85 | . . 85 . Launcher 14 | . 4 10 . Special . | . . . . Kinetic 196 | 28 60 104 4 Thermal . | . . . . Explosive 10 | . 4 6 . Electromagnetic 6 | . . 6 . Robot Hit Streak 10 | 4 10 8 5 Robot Miss Streak 6 | 3 6 3 . Penetration Max . | . . . . Secondary Targets 1 | . 1 . . Max Gunslinging Chain 1 | . 1 . . Shots Hit Robots 99 | 18 31 46 4 Core Hits 56 | 8 21 26 1 Critical Kills . | . . . . Critical Parts Destroyed 1 | . . 1 . Critical Strikes 2 | . . 2 . Destroy 2 | . . 2 . Melee Attacks 19 | . . 19 . Impact . | . . . . Slashing 19 | . . 19 . Piercing . | . . . . Sneak Attacks 1 | . . 1 . Combat Hostiles . | . . . . Follow-up Attacks . | . . . . Damage Inflicted 2893 | 160 598 2059 76 Guns 909 | 160 393 280 76 Cannons 463 | . . 463 . Explosions 771 | . 205 566 . Melee 750 | . . 750 . Ramming . | . . . . Kinetic 1467 | 160 393 838 76 Thermal . | . . . . Explosive 580 | . 205 375 . Electromagnetic 96 | . . 96 . Impact . | . . . . Slashing 750 | . . 750 . Piercing . | . . . . Highest Corruption . | . . . . Average Corruption . | . . . . Corruption Purged . | . . . . Corruption Blocked . | . . . . Overload Shots . | . . . . Overflow Damage 49 | . 3 46 . Projectiles 46 | . . 46 . Explosions 3 | . 3 . . Melee . | . . . . Knockbacks 1 | . . 1 . Impact . | . . . . Kinetic 1 | . . 1 . Secondary . | . . . . Self-Inflicted Damage 29 | . . 29 . Shots 1 | . . 1 . Rammed . | . . . . Targets Rammed . | . . . . Kicked . | . . . . Crushed . | . . . . Highest Temperature 39 | . 18 . 39 Average Temperature 9 | . 7 . 25 Received Heat Transfer 297 | . 81 171 45 Siege Activations . | . . . . Robots Corrupted . | . . . . Combat Hostiles . | . . . . Parts Fried . | . . . . Impact Corruptions . | . . . . Robots Melted . | . . . . Combat Hostiles . | . . . . Parts Melted . | . . . . Heat Transferred . | . . . . Parts Sabotaged . | . . . . Parts Stolen . | . . . . Parts Stripped . | . . . . Power Chain Reactions . | . . . . Alert | -11 -10 -10 -9 ------- Run | Yrd Mat Sub Rec Peak Influence 706 | 20 199 . 706 Initial 666 | . 13 . 666 Average 162 | 10 66 . 693 Maximum Alert Level 3 | . . . 3 Low Security (%) 83 | 100 100 . . Level 1 . | . . . . Level 2 5 | . . . 33 Level 3 10 | . . . 66 Level 4 . | . . . . Level 5 . | . . . . High Security . | . . . . Max Security . | . . . . Squads Dispatched 1 | . 1 . . Investigation . | . . . . Extermination . | . . . . Reinforcement 1 | . 1 . . Assault . | . . . . Garrison . | . . . . Intercept . | . . . . Searches Triggered . | . . . . Construction Impeded . | . . . . Haulers Reinforced . | . . . . Active Scanning Responses . | . . . . Cargo Convoy Interrupts . | . . . . Stealth | -11 -10 -10 -9 --------- Run | Yrd Mat Sub Rec Distress Signals 1 | . 1 . . Communications Jammed . | . . . . Distress Signals . | . . . . Times Spotted 48 | . 18 29 1 Peak Tracking Total 6 | . 5 6 1 Tactical Retreats 12 | . 2 10 . Traps | -11 -10 -10 -9 ------- Run | Yrd Mat Sub Rec Traps Triggered 2 | . . 2 . Indirectly . | . . . . Trap Hack Attempts . | . . . . Triggered . | . . . . Disarmed . | . . . . Reprogrammed . | . . . . Reused . | . . . . Traps Extracted . | . . . . Installed . | . . . . Triggered 3 | . . 3 . Machines | -11 -10 -10 -9 ---------- Run | Yrd Mat Sub Rec Machines Disabled 4 | . . 4 . Max in Single Turn 1 | . . 1 . Machines Repaired . | . . . . Machines Dismantled . | . . . . Machines Sabotaged . | . . . . Overloaded Fab Kills . | . . . . Hacking | -11 -10 -10 -9 --------- Run | Yrd Mat Sub Rec Machines Accessed 8 | . 2 1 5 Terminals 5 | . 2 . 3 Fabricators . | . . . . Repair Stations . | . . . . Recycling Units 2 | . . . 2 Scanalyzers . | . . . . Garrison Access . | . . . . Total Hacks 28 | . 4 9 15 Successful 22 | . 2 9 11 Failed 6 | . 2 . 4 Catastrophic 2 | . . . 2 Database Lockouts . | . . . . Manual 17 | . 4 . 13 Terminals 15 | . 4 . 11 Fabricators . | . . . . Repair Stations . | . . . . Recycling Units 4 | . . . 4 Scanalyzers . | . . . . Garrison Access . | . . . . Terminal Hacks 13 | . 1 9 3 Record 8 | . . 8 . Terminal Index 2 | . 1 . 1 Hauler Manifests 1 | . . . 1 Registered Components 1 | . . . 1 Derelict Proto ID Bank 1 | . . 1 . Fabricator Hacks . | . . . . Repair Station Hacks . | . . . . Recycling Unit Hacks . | . . . . Scanalyzer . | . . . . Garrison Access Hacks . | . . . . Unauthorized Hacks 9 | . 1 . 8 Terminals 6 | . 1 . 5 Track 1 | . . . 1 Botnet 3 | . . . 3 Operators 2 | . 1 . 1 Fabricators . | . . . . Repair Stations . | . . . . Recycling Units 3 | . . . 3 Reject 2 | . . . 2 Recyclers 1 | . . . 1 Scanalyzers . | . . . . Garrison Access . | . . . . Data Cores Recovered . | . . . . Used . | . . . . Hacking Detections 7 | . 2 . 5 Full Trace Events . | . . . . Feedback Events . | . . . . Feedback Blocked . | . . . . Robot Schematics Acquired . | . . . . Robots Built . | . . . . Authchips . | . . . . Time . | . . . . Total Robot Build Rating . | . . . . Part Schematics Acquired . | . . . . Parts Built . | . . . . Authchips . | . . . . Time . | . . . . Total Part Build Rating . | . . . . Parts Repaired . | . . . . Time . | . . . . Parts Recycled . | . . . . Recycled Matter . | . . . . Retrieved Matter . | . . . . Retrieved Components . | . . . . Parts Scanalyzed . | . . . . Part Schematics Acquired . | . . . . Parts Damaged . | . . . . Bothacking | -11 -10 -10 -9 ------------ Run | Yrd Mat Sub Rec Used RIF Installer . | . . . . Robots Hacked . | . . . . Non-combat . | . . . . Combat . | . . . . Robot Hacks Applied . | . . . . Relay Couplers Released . | . . . . Fabnet Peak Effective % . | . . . . Robots Rewired . | . . . . Allies Hacked . | . . . . Hacks Repelled . | . . . . Allies | -11 -10 -10 -9 -------- Run | Yrd Mat Sub Rec Total Allies . | . . . . Largest Group . | . . . . Highest-Rated Group . | . . . . Highest-Rated Ally . | . . . . Total Orders . | . . . . Ally Attacks . | . . . . Total Damage . | . . . . Kills . | . . . . Allies Corrupted . | . . . . Allies Melted . | . . . . Intel | -11 -10 -10 -9 ------- Run | Yrd Mat Sub Rec Robot Analysis Total . | . . . . Derelict Logs Recovered 1 | . . 1 . Drone Launches . | . . . . Drone Recoveries . | . . . . Exploration | -11 -10 -10 -9 ------------- Run | Yrd Mat Sub Rec Turns Passed 2722 | 180 949 1369 224 Spaces Moved 1548 | 76 526 792 154 Core . | . . . . Treads 455 | 76 379 . . Legs 782 | . . 628 154 Wheels 311 | . 147 164 . Hover . | . . . . Flight . | . . . . Fastest Speed 105 | 160 105 105 130 Average Speed 133 | 160 144 124 130 Slowest Speed 160 | 160 160 130 130 Overloaded Moves . | . . . . Propulsion Burnouts . | . . . . Robots Hopped . | . . . . Cave-ins Triggered . | . . . . Exploration Rate (%) 40 | 6 80 46 30 Regions Visited 3 Branch Regions 2 Pre-discovered Areas . | . . . . Known Exits Taken . | . . . . Unknown Exits Taken 3 | 1 1 1 . Scrap Searched 15 | . . 15 . Spaces Dug 9 | . . 9 . Terrain Destroyed 124 | . 16 108 . Melee 2 | . . 2 . Projectile 37 | . . 37 . AOE 85 | . 16 69 . Terrain Rammed . | . . . . Walls Destroyed . | . . . . Machines Disabled . | . . . . Actions | -11 -10 -10 -9 --------- Run | Yrd Mat Sub Rec Total 1988 | 112 663 1037 176 Wait 191 | 17 76 89 9 Move 1545 | 75 525 791 154 Hop . | . . . . Pick Up 23 | 1 13 8 1 Fast Attach 13 | 1 4 6 2 Attach 4 | . 1 3 . Detach 1 | . 1 . . Swap 10 | 2 2 6 . Drop 28 | 2 7 13 6 Fire 154 | 14 34 102 4 Melee 19 | . . 19 . Ram . | . . . . Kick . | . . . . Crush . | . . . . Escape Stasis . | . . . . Rewire . | . . . . Trap . | . . . . Miscellaneous . | . . . . Route ------- -11/Scrapyard -10/Materials (discovered 5 exits: [*Mat x2] / [*Min x2] / *Sub) -10/Subcaves -9/Recycling History --------- Turn | Location | Event 6 | -11/Scrapyard | Discovered new exit (range 3) 181 | -11/Scrapyard | Entered Materials 315 | -10/Materials | Build established: Mutant 476 | -10/Materials | Discovered new exit (range 8) 711 | -10/Materials | Discovered new exit (range 13) 767 | -10/Materials | Discovered new exit (range 9) 812 | -10/Materials | Discovered new exit (range 9) 1124 | -10/Materials | Discovered new exit (range 8) 1130 | -10/Materials | Entered Subcaves 1338 | -10/Subcaves | Visited 4L-MR0's lab 1353 | -10/Subcaves | Found Cargo Legs 1355 | -10/Subcaves | Attached Cargo Legs, gained temporary slots: Utility x2 1475 | -10/Subcaves | Core integrity fell below 50% 1892 | -10/Subcaves | Disturbed a concealed Subdweller 1915 | -10/Subcaves | A swath of the cavern ceiling suddenly collapsed 2000 | -10/Subcaves | Discovered new exit (range 14) 2133 | -10/Subcaves | Core integrity fell below 20% 2377 | -10/Subcaves | Ambushed by angry Subdweller bent on revenge 2499 | -10/Subcaves | Entered Recycling 2500 | -9/Recycling | Found Scrap Engine 2723 | -9/Recycling | Destroyed by Y-45 Defender with Heavy Assault Rifle Last Messages --------------- 02629_ Scrap Engine consumes Hrd. Light Armor Plating. 02640_ Scrap Engine consumes Propulsion Shielding. 02670_ Scrap Engine envelopes itself in armor. 02673_ Connecting with Terminal... >>Manifests Retrieving manifest data... No active manifests on record. >>Trojan(Botnet) Trojan loaded successfully. Testing... Terminal linked with 2 systems. Awaiting botnet instructions. 02684_ Connecting with Recycling Unit... >>Trojan(Reject) Trojan loaded successfully. Testing... Ejection routine running. 02709_ Y-45 Defender springs to life. 02717_ Critical hit (Burn: +37). 02717_ Lgt. Ion Engine destroyed. Map ----- +----------------------------------------------------+ | | | | | | | | | | | | | | | ??????????????????????????????????????????? | | ??????????????????????????????????????????? | | ??????????????????######################??? | | ??????????????????######################??? | | ??????????????????## % ##"""##### | | ??????????????????## %% * ##"Y"##### | | ??????????????????## ! / + | | ??????????????????## !! ! # ## | | ?????????????##################### ## | | ???????????####################### ## | | ???????????####"""#####??#########+##### ## | | ???????????## #"Y"#####??## # ## | | ????????????? ##??## """" """" # ## | | ??????????????? ##??## """" """" # ## | | ???????????????? ##??## """" """" # # | | ????????????????##Y ##??## """" """" # ## | | ????????????????## ###### # ## | | ????????????????## ###### """" # ## | | ????????????????##@ ###""" """" # | | ????????????????## ###"Y """" + | | ????????????????## ###""" """" # | | ????????????????## ###### "T" ### | | ????????????????## ###### """ ### | | ????????????????## ########+############ | | ???????????????### ############ | | ??????????###??####+###+##+## ##????????## | | ?????????? + # ???? rr | | ??????????## """ """ """ # ####????##### | | ?????????????????""" """ # ####??r?##### | | ???????????????? """ """ # # ??????????? | | ??????????????? # / ??????????? | | ???????????????#######+######## ??????????? | | ???????????????####### ######## ??????????? | | ??????????????????????????????????????????? | | ??????????????????????????????????????????? | | ??????????????????????????????????????????? | | ??????????????????????????????????????????? | | ??????????????????????????????????????????? | | ??????????????????????????????????????????? | | ??????????????????????????????????????????? | | ??????????????????????????????????????????? | | ???????????????????????????????r??????????? | | ??????????????????????????????????????????? | +----------------------------------------------------+ Best States ------------- Heat Dissipation 25 Energy Generation 15 Energy Capacity 250 Matter Stores 300 Matter Capacity 300 Sight Range 21 Robot Scan Range 14 Terrain Scan Density 10 Armor Coverage 100 Resistance: KI 10 Evasion (%) 55 Recoil Reduction 2 Item Schematics ----------------- None Robot Schematics ------------------ None Fabricated ------------ Nothing Alien Tech Used ----------------- None Achievements -------------- None Challenges ------------ None Game ------ Seed CooledRecyclingMultirail Manual? 0 Play Time 00:36:38 Cumulative 120.5 hours Start 2024.05.15 @ 16:14:59 End 2024.05.15 @ 16:58:43 Sessions 1 Manual Loads 0 Difficulty Rogue Special Mode None Game No. 123 Rogue 123 Adventurer 0 Explorer 0 Win Type - Total 4 Types 2/0/2/0/0/0/0/0/0 Lore% 56 Gallery% 54 Achievement% 52 Wizard Run 0 Options --------- Layout 0 ASCII 0 Keyboard 0 Movement Mouse Keybinds 0 Fullscreen 2 Font 18/X11Bold Map View 76x50 Zoom Use 0% Tactical HUD 1 Map Filters NONE Filters NONE Steam 1 RUN: 78ab53d8-1c51-4699-85e3-81a47ef33f15